bitfinex/quotes_BTCUSD_20220205
["timestamp","ask_amount","ask_price","bid_price","bid_amount"]
[1644085300279,0.018947,41660.0,41657.0,0.060029]
[1644085301080,0.018947,41660.0,41656.0,0.19728253]
[1644085301281,0.04638235,41657.0,41656.0,0.19728253]
[1644085301481,0.04638235,41660.0,41656.0,0.19728253]
[1644085302985,0.4997,41662.0,41657.0,0.060032]
[1644085303183,0.018947,41661.0,41657.0,0.060032]
[1644085304432,0.018947,41661.0,41656.0,0.19728253]
[1644085304632,0.018947,41661.0,41656.0,0.19718669]
[1644085306032,0.018947,41661.0,41658.0,0.00361765]
[1644085306633,0.04638235,41662.0,41658.0,0.00361765]
[1644085307981,0.04638235,41662.0,41659.0,0.00361765]
[1644085308186,0.018947,41662.0,41659.0,0.00361765]
[1644085308382,0.04709566,41663.0,41657.0,0.13316882]
[1644085308597,0.018947,41662.0,41659.0,0.00361765]
[1644085309284,0.04709566,41663.0,41659.0,0.00361765]
[1644085309582,0.04638235,41660.0,41657.0,0.060032]
[1644085309783,0.04638235,41660.0,41654.0,0.120065]
[1644085310183,0.04638235,41657.0,41654.0,0.120065]
[1644085310383,0.0007133,41663.0,41654.0,0.120065]
[1644085310384,0.04638235,41660.0,41654.0,0.120065]
[1644085312431,0.04638235,41660.0,41654.0,0.12368265]
[1644085312635,0.04638235,41660.0,41654.0,0.37877308]
[1644085312834,0.04638235,41660.0,41654.0,0.12368265]
[1644085314036,0.04638235,41662.0,41654.0,0.38071988]
[1644085314235,0.04638235,41662.0,41654.0,0.37938223]
[1644085314682,0.04638235,41662.0,41654.0,0.12368265]
[1644085315082,0.00071366,41663.0,41654.0,0.120065]
[1644085315282,0.04638235,41659.0,41654.0,0.120065]
[1644085315482,0.04638235,41659.0,41654.0,0.37771008]
[1644085316885,0.00071366,41663.0,41654.0,0.120065]
[1644085317085,0.04638235,41659.0,41654.0,0.120065]
[1644085318087,0.04638235,41659.0,41654.0,0.37429112]
[1644085318733,0.04638235,41659.0,41654.0,0.37790877]
[1644085319133,0.04638235,41659.0,41658.0,0.00361765]
[1644085319932,0.02038004,41663.0,41654.0,0.37677711]
[1644085320133,0.06676239,41663.0,41657.0,0.00361765]
[1644085320333,0.018947,41662.0,41660.0,0.23252218]
[1644085323186,0.018947,41662.0,41659.0,0.060032]
[1644085324990,0.04707506,41663.0,41659.0,0.060032]
[1644085325590,0.04638235,41663.0,41659.0,0.060032]
[1644085325790,0.04707506,41663.0,41659.0,0.060032]
[1644085326032,0.018947,41662.0,41659.0,0.060032]
[1644085326635,0.04638235,41663.0,41659.0,0.060032]
[1644085326833,0.04638235,41663.0,41658.0,0.25787101]
[1644085327033,0.04704977,41663.0,41658.0,0.26148866]
[1644085327231,0.00066742,41663.0,41654.0,0.12368265]
[1644085327433,0.04704977,41663.0,41654.0,0.12368265]
[1644085327632,0.04704977,41663.0,41654.0,0.12358914]
[1644085327933,0.04638235,41663.0,41654.0,0.12358914]
[1644085328233,0.04704976,41663.0,41654.0,0.12358914]
[1644085328432,0.04704976,41663.0,41658.0,0.21601648]
[1644085328633,0.04704976,41663.0,41658.0,0.21963413]
[1644085329031,0.04704976,41663.0,41658.0,0.21463413]
[1644085329237,0.04638235,41663.0,41658.0,0.21463413]
[1644085329432,0.27323255,41663.0,41658.0,0.21463413]
[1644085329683,0.27323255,41663.0,41658.0,0.060032]
[1644085329882,0.018947,41662.0,41658.0,0.060032]
[1644085330082,0.018947,41662.0,41654.0,0.12358914]
[1644085330083,0.018947,41662.0,41654.0,0.11997149]
[1644085330284,0.04638235,41660.0,41654.0,0.11997149]
[1644085330682,0.04638235,41660.0,41654.0,0.31848831]
[1644085331283,0.04638235,41659.0,41654.0,0.31848831]
[1644085331682,0.22618278,41663.0,41654.0,0.31848831]
[1644085331886,0.22618278,41663.0,41655.0,0.25462863]
[1644085331887,0.04638235,41659.0,41655.0,0.25462863]
[1644085332182,0.04638235,41659.0,41654.0,0.31848831]
[1644085332384,0.04638235,41659.0,41655.0,0.25436205]
[1644085332584,0.04638235,41659.0,41654.0,0.31848831]
[1644085332985,0.27323421,41663.0,41657.0,0.00361765]
[1644085333186,0.27323421,41663.0,41658.0,0.060032]
[1644085333435,0.04705143,41663.0,41658.0,0.060032]
[1644085333930,0.04638235,41663.0,41658.0,0.060032]
[1644085334129,0.0470513,41663.0,41658.0,0.060032]
[1644085334331,0.0470513,41663.0,41658.0,0.055032]
[1644085334534,0.018947,41662.0,41658.0,0.055032]
[1644085335832,0.0470513,41663.0,41654.0,0.31848831]
[1644085336433,0.04638235,41663.0,41654.0,0.31848831]
[1644085336632,0.4997,41662.0,41654.0,0.31848831]
[1644085337283,0.54608235,41662.0,41654.0,0.31848831]
[1644085338384,0.56696026,41662.0,41654.0,0.31848831]
[1644085339186,0.52057791,41662.0,41654.0,0.31348831]
[1644085340387,0.52057791,41662.0,41655.0,0.00361765]
[1644085340687,0.4997,41662.0,41655.0,0.06364965]
[1644085342433,0.51858691,41662.0,41655.0,0.06364965]
[1644085343835,0.51858691,41662.0,41658.0,0.00361765]
[1644085344034,0.018947,41661.0,41658.0,0.00361765]
[1644085344883,0.018947,41661.0,41656.0,0.00361765]
[1644085345583,0.52140193,41662.0,41660.0,0.00361765]
[1644085345783,0.52112642,41662.0,41660.0,0.00361765]
[1644085346185,0.52112642,41662.0,41661.0,0.335591]
[1644085346186,0.16107478,41662.0,41661.0,0.335591]
[1644085346385,0.00066898,41663.0,41662.0,0.5]
[1644085346585,0.003,41671.0,41663.0,0.3]
[1644085346787,0.03323312,41672.0,41668.0,0.00361765]
[1644085346987,0.011,41679.0,41672.0,0.6]
[1644085347189,0.011,41679.0,41677.0,0.00361765]
[1644085347384,0.011,41679.0,41677.0,0.12361065]
[1644085347585,0.011,41679.0,41677.0,0.32451723]
[1644085347586,0.01,41679.0,41677.0,0.32451723]
[1644085347788,0.01,41679.0,41678.0,0.3886449]
[1644085347984,0.001,41683.0,41678.0,0.0530539]
[1644085348185,0.001,41683.0,41677.0,0.12361065]
[1644085348642,0.00067125,41682.0,41677.0,0.00361765]
[1644085349139,0.00067125,41682.0,41678.0,0.25820658]
[1644085349539,0.04738235,41683.0,41678.0,0.25820658]
[1644085349743,0.04738235,41683.0,41678.0,0.24320658]
[1644085349939,0.00067125,41682.0,41678.0,0.24320658]
[1644085350740,0.04738235,41683.0,41678.0,0.24320658]
[1644085350941,0.001,41683.0,41679.0,0.2642314]
[1644085351142,0.00067125,41682.0,41680.0,0.00361765]
[1644085352041,0.001,41683.0,41680.0,0.00361765]
[1644085352299,0.04805212,41683.0,41680.0,0.00361765]
[1644085352696,0.00166977,41683.0,41680.0,0.00361765]
[1644085352895,0.04805212,41683.0,41680.0,0.00361765]
[1644085353296,0.04738235,41683.0,41680.0,0.00361765]
[1644085353496,0.04805212,41683.0,41680.0,0.00361765]
[1644085354501,0.04738235,41683.0,41676.0,0.119994]
[1644085354700,0.04805212,41683.0,41676.0,0.119994]
[1644085355301,0.04805212,41683.0,41678.0,0.20545499]
[1644085355700,0.04738235,41683.0,41678.0,0.20545499]
[1644085355942,0.00066988,41682.0,41678.0,0.20545499]
[1644085356341,0.00066988,41682.0,41679.0,0.27491438]
[1644085356739,0.001,41683.0,41679.0,0.27491438]
[1644085357140,0.00066987,41682.0,41679.0,0.27491438]
[1644085357547,0.00066987,41682.0,41680.0,0.00361765]
[1644085357942,0.001,41683.0,41680.0,0.00361765]
[1644085358341,0.00166987,41683.0,41680.0,0.00361765]
[1644085358542,0.00166987,41683.0,41679.0,0.27491438]
[1644085359241,0.04738235,41683.0,41679.0,0.27491438]
[1644085359541,0.00066987,41682.0,41679.0,0.27491438]
[1644085360384,0.001,41683.0,41679.0,0.27491438]
[1644085360584,0.00066987,41682.0,41679.0,0.27491438]
[1644085361586,0.001,41683.0,41679.0,0.27491438]
[1644085361785,0.00066987,41682.0,41679.0,0.27491438]
[1644085362390,0.00066987,41682.0,41680.0,0.00361765]
[1644085362791,0.1296,41689.0,41681.0,0.335591]
[1644085362987,0.018947,41688.0,41687.0,0.00361765]
[1644085363188,0.018947,41688.0,41687.0,0.25781414]
[1644085363435,0.01367903,41689.0,41687.0,0.46228116]
[1644085363634,0.01367903,41689.0,41688.0,0.25795081]
[1644085364032,0.011,41689.0,41688.0,0.40569005]
[1644085364234,0.011,41689.0,41688.0,0.45379005]
[1644085364433,0.001,41693.0,41688.0,0.45379005]
[1644085365036,1.00551641,41695.0,41692.0,0.00361765]
[1644085365237,1.00551641,41695.0,41693.0,0.0481]
[1644085365436,1.00551641,41695.0,41694.0,0.3]
[1644085365634,1.00551641,41695.0,41694.0,0.3481]
[1644085365635,0.64573941,41695.0,41694.0,0.3481]
[1644085365837,0.94635991,41701.0,41696.0,0.7]
[1644085366037,0.93935991,41701.0,41700.0,0.00361765]
[1644085366236,0.03939343,41707.0,41700.0,0.00361765]
[1644085366237,0.03939343,41707.0,41701.0,0.45]
[1644085366435,0.03939343,41707.0,41705.0,0.00361765]
[1644085366638,1.18706306,41706.0,41705.0,0.05171765]
[1644085367291,1.18706306,41706.0,41705.0,0.35171765]
[1644085367491,1.20101006,41706.0,41705.0,0.0481]
[1644085367692,1.20101006,41706.0,41703.0,0.059955]
[1644085367693,0.018947,41705.0,41703.0,0.059955]
[1644085368494,1.18206306,41706.0,41703.0,0.059955]
[1644085368693,0.018947,41705.0,41703.0,0.059955]
[1644085369892,0.018947,41705.0,41701.0,0.1388471]
[1644085370699,0.018947,41705.0,41701.0,0.119909]
[1644085371141,1.18206306,41706.0,41701.0,0.119909]
[1644085371539,1.17778045,41706.0,41701.0,0.119909]
[1644085371739,0.018947,41705.0,41701.0,0.119909]
[1644085372341,0.013947,41705.0,41702.0,0.00361765]
[1644085372542,0.00134713,41704.0,41702.0,0.00361765]
[1644085373344,0.00134713,41704.0,41702.0,0.05361765]
[1644085373542,0.00134713,41704.0,41703.0,0.2612295]
[1644085373743,1.17778045,41706.0,41703.0,0.3593295]
[1644085373941,1.17778045,41706.0,41705.0,0.00361765]
[1644085374143,1.19179945,41706.0,41705.0,0.00361765]
[1644085374786,1.17778045,41706.0,41705.0,0.00361765]
[1644085374984,1.19179945,41706.0,41702.0,0.00361765]
[1644085375185,0.014019,41705.0,41703.0,0.1]
[1644085375384,0.014019,41705.0,41701.0,0.22352665]
[1644085375585,0.014019,41705.0,41701.0,0.119909]
[1644085375784,0.014019,41705.0,41704.0,0.00361765]
[1644085375990,1.17778045,41706.0,41704.0,0.00361765]
[1644085376188,1.17778045,41706.0,41704.0,0.17162596]
[1644085376385,0.6285953,41706.0,41705.0,0.35]
[1644085376586,0.2688813,41706.0,41705.0,0.0981]
[1644085376785,0.2688813,41706.0,41705.0,0.1981]
[1644085377787,0.2688813,41706.0,41705.0,0.0481]
[1644085379333,0.2688813,41706.0,41705.0,0.31157203]
[1644085379733,0.2688813,41706.0,41705.0,0.41157203]
[1644085381735,0.2688813,41706.0,41705.0,0.46157203]
[1644085381937,0.01,41709.0,41707.0,0.335127]
[1644085382183,0.01,41709.0,41708.0,0.35952639]
[1644085382387,0.00287098,41718.0,41710.0,0.75]
[1644085382587,0.00287098,41718.0,41715.0,0.059936]
[1644085382784,0.00287098,41718.0,41716.0,0.0481]
[1644085382984,0.00287098,41718.0,41716.0,0.05171765]
[1644085382985,1.28806864,41717.0,41716.0,0.05171765]
[1644085383184,1.28806864,41717.0,41716.0,0.40171765]
[1644085383384,1.28806864,41717.0,41716.0,0.20171765]
[1644085383385,0.56894846,41717.0,41716.0,0.20171765]
[1644085383585,0.20938946,41717.0,41716.0,0.20171765]
[1644085383788,0.20938946,41717.0,41716.0,0.50171765]
[1644085383985,1.42857143,41723.0,41717.0,0.4]
[1644085384188,1.42857143,41723.0,41719.0,0.00361765]
[1644085384385,1.42857143,41723.0,41719.0,0.30361765]
[1644085384589,1.42857143,41723.0,41719.0,0.11354471]
[1644085384785,1.42357143,41723.0,41719.0,0.11354471]
[1644085384985,1.42357143,41723.0,41722.0,0.00361765]
[1644085385185,1.43759043,41723.0,41722.0,0.00361765]
[1644085385587,1.42357143,41723.0,41721.0,0.00361765]
[1644085385792,1.41857143,41723.0,41719.0,0.05992706]
[1644085386840,1.41857143,41723.0,41719.0,0.32704497]
[1644085387041,1.41857143,41723.0,41719.0,0.05992706]
[1644085388047,1.41857143,41723.0,41720.0,0.0481]
[1644085388243,1.41428937,41723.0,41720.0,0.0481]
[1644085388945,1.41428937,41723.0,41721.0,0.00361765]
[1644085389143,1.41357143,41723.0,41722.0,0.0481]
[1644085389784,1.41357143,41723.0,41721.0,0.00361765]
[1644085389984,1.41357143,41723.0,41722.0,0.00361765]
[1644085390188,1.04508143,41723.0,41722.0,0.05171765]
[1644085390388,0.44854603,41723.0,41722.0,0.35171765]
[1644085390585,0.08110003,41723.0,41722.0,0.40171765]
[1644085390787,0.06910003,41723.0,41722.0,0.83684465]
[1644085390986,0.00787122,41732.0,41723.0,0.75]
[1644085391188,1.13877197,41729.0,41728.0,0.00361765]
[1644085391389,1.54378671,41734.0,41730.0,0.75]
[1644085391594,1.54378671,41734.0,41733.0,0.63224908]
[1644085391595,0.53948671,41734.0,41733.0,0.63224908]
[1644085391788,0.18014471,41734.0,41733.0,1.08034908]
[1644085391988,0.051,41735.0,41734.0,0.75]
[1644085391989,0.00066168,41735.0,41734.0,0.75]
[1644085392187,1.64234468,41736.0,41735.0,0.75]
[1644085392387,0.21853272,41736.0,41735.0,1.25]
[1644085392591,0.0002004,41739.0,41737.0,0.10988097]
[1644085392789,0.0005054,41741.0,41739.0,1.085127]
[1644085392991,0.001,41747.0,41740.0,0.3]
[1644085392992,1.75197252,41745.0,41740.0,0.3]
[1644085393190,0.30224295,41745.0,41744.0,0.00361765]
[1644085393454,1.91158816,41757.0,41750.0,0.8]
[1644085393649,0.5092,41769.0,41757.0,0.75]
[1644085393650,1.08741508,41762.0,41757.0,0.75]
[1644085393846,1.08741508,41762.0,41758.0,0.55]
[1644085394046,1.08741508,41762.0,41758.0,0.65]
[1644085394251,1.08741508,41762.0,41761.0,0.6012]
[1644085394448,1.08741508,41762.0,41761.0,0.75291765]
[1644085394647,1.08241508,41762.0,41761.0,1.14791765]
[1644085394850,0.01,41769.0,41762.0,0.75]
[1644085395049,0.01,41769.0,41766.0,0.60481765]
[1644085395448,0.01,41769.0,41766.0,1.15602366]
[1644085395449,1.35650174,41768.0,41766.0,1.15602366]
[1644085395748,1.35650174,41768.0,41766.0,0.20171765]
[1644085395948,1.33150174,41768.0,41766.0,0.29382837]
[1644085396148,1.33150174,41768.0,41766.0,0.30653585]
[1644085396351,0.04638235,41767.0,41766.0,0.1481]
[1644085396653,0.04638235,41767.0,41761.0,0.6]
[1644085396654,0.24807397,41762.0,41761.0,0.6]
[1644085396856,0.58560842,41762.0,41761.0,1.1]
[1644085397290,0.58560842,41762.0,41761.0,0.6]
[1644085397490,0.33753445,41762.0,41761.0,0.6]
[1644085397892,0.33753445,41762.0,41753.0,0.02020762]
[1644085398095,0.04138235,41757.0,41753.0,0.02020762]
[1644085398491,0.2961521,41762.0,41753.0,0.02020762]
[1644085398492,0.04138235,41754.0,41753.0,0.02020762]
[1644085398892,0.04138235,41754.0,41747.0,0.0918986]
[1644085399092,0.2618163,41756.0,41748.0,0.0481]
[1644085399501,0.30631987,41749.0,41747.0,0.08328095]
[1644085399698,0.39047098,41749.0,41747.0,0.08328095]
[1644085399895,0.37645198,41749.0,41747.0,0.08328095]
[1644085400094,0.43857098,41749.0,41747.0,0.08328095]
[1644085400295,0.43857098,41749.0,41743.0,0.00072019]
[1644085400495,0.37440851,41744.0,41743.0,0.00072019]
[1644085400694,0.43652751,41744.0,41743.0,0.00072019]
[1644085400947,0.75,41743.0,41742.0,0.01682514]
[1644085401143,0.062119,41743.0,41742.0,0.01682514]
[1644085401537,0.014019,41743.0,41742.0,0.01682514]
[1644085401941,0.014019,41743.0,41725.0,0.92051856]
[1644085401942,0.75,41742.0,41725.0,0.11982]
[1644085402148,0.75,41742.0,41720.0,0.26963903]
[1644085402149,0.04138235,41727.0,41721.0,0.5]
[1644085402342,0.0481,41732.0,41720.0,0.03]
[1644085402541,0.04138235,41722.0,41720.0,0.03]
[1644085402941,0.29140849,41722.0,41720.0,0.03]
[1644085403141,0.08322474,41721.0,41720.0,0.03]
[1644085403644,0.062119,41721.0,41720.0,0.03]
[1644085404803,0.6012,41734.0,41720.0,0.03]
[1644085404804,0.0481,41727.0,41720.0,0.38360093]
[1644085405001,0.4992,41742.0,41720.0,0.38360093]
[1644085405002,0.0481,41738.0,41726.0,0.00861765]
[1644085405202,0.04138235,41739.0,41720.0,0.62172757]
[1644085405398,0.0481,41738.0,41725.0,0.00861765]
[1644085405601,0.04138235,41728.0,41722.0,0.00861765]
[1644085405799,0.04138235,41728.0,41723.0,0.335127]
[1644085406001,0.04138235,41728.0,41724.0,0.34498328]
[1644085406200,0.07490816,41729.0,41722.0,0.00861765]
[1644085406399,0.06492514,41743.0,41721.0,0.34498328]
[1644085406400,0.08679446,41736.0,41723.0,0.8]
[1644085406601,0.35356503,41738.0,41727.0,0.05]
[1644085406800,0.35356503,41738.0,41728.0,0.34498328]
[1644085407002,0.35356503,41738.0,41728.0,0.1]
[1644085407200,0.60197188,41738.0,41728.0,0.25]
[1644085407602,0.014019,41737.0,41731.0,0.00071975]
[1644085408000,0.08286635,41735.0,41731.0,0.00071975]
[1644085408445,0.08286635,41735.0,41728.0,0.15]
[1644085408642,0.35356503,41738.0,41731.0,0.00071975]
[1644085408843,0.01965412,41744.0,41731.0,0.00071975]
[1644085409745,0.01965412,41744.0,41729.0,0.41589373]
[1644085409746,0.26457086,41740.0,41729.0,0.41589373]
[1644085409949,0.014019,41740.0,41735.0,0.0007197]
[1644085410944,0.014019,41740.0,41729.0,0.41589373]
[1644085410945,0.22859553,41739.0,41729.0,0.41589373]
[1644085411146,0.22859553,41739.0,41735.0,0.0007197]
[1644085411754,0.014019,41738.0,41735.0,0.0007197]
[1644085411948,0.062119,41738.0,41735.0,0.0007197]
[1644085412188,0.08280172,41725.0,41721.0,0.34502042]
[1644085412689,0.19954631,41730.0,41722.0,0.35357419]
[1644085412887,0.1191,41737.0,41722.0,0.01844719]
[1644085413091,0.1672,41737.0,41722.0,0.01844719]
[1644085413489,0.31789053,41730.0,41727.0,0.00071979]
[1644085413691,0.014019,41729.0,41727.0,0.00071979]
[1644085413990,0.08504576,41728.0,41727.0,0.00071979]
[1644085414191,0.09906476,41728.0,41727.0,0.00071979]
[1644085414588,0.09906476,41728.0,41723.0,0.05]
[1644085414789,0.08504576,41728.0,41725.0,0.00071982]
[1644085415943,0.08504576,41728.0,41724.0,0.00071983]
[1644085416838,0.07504576,41728.0,41721.0,0.29787462]
[1644085417139,0.07504576,41728.0,41724.0,0.00071983]
[1644085418040,0.06924182,41729.0,41720.0,0.24]
[1644085418240,0.06461712,41722.0,41720.0,0.24]
[1644085418438,0.29293629,41730.0,41720.0,0.24]
[1644085418838,0.22614681,41724.0,41720.0,0.24]
[1644085419040,0.29293629,41730.0,41720.0,0.24]
[1644085419439,0.07759375,41730.0,41723.0,0.00071929]
[1644085419692,0.1384623,41737.0,41723.0,0.00071929]
[1644085419892,0.014019,41736.0,41723.0,0.00071929]
[1644085420199,0.1384623,41737.0,41724.0,0.0481]
[1644085420393,0.1384623,41737.0,41730.0,0.05]
[1644085420594,0.0193623,41737.0,41730.0,0.05]
[1644085420792,0.35620607,41741.0,41732.0,0.335127]
[1644085420994,0.02120053,41737.0,41733.0,0.335127]
[1644085421493,0.02120053,41737.0,41733.0,0.1]
[1644085421894,0.02120053,41737.0,41734.0,0.383227]
[1644085422294,0.04120053,41737.0,41734.0,0.533227]
[1644085422495,0.04120053,41737.0,41734.0,0.1981]
[1644085422896,0.02,41737.0,41734.0,0.1981]
[1644085423296,0.02,41737.0,41734.0,0.0981]
[1644085423736,0.02,41737.0,41734.0,0.0481]
[1644085424038,0.02,41737.0,41734.0,0.0431]
[1644085424641,0.02,41737.0,41733.0,0.00071917]
[1644085424837,0.014019,41736.0,41733.0,0.00071917]
[1644085425339,0.07528191,41735.0,41732.0,0.06269]
[1644085425536,0.35330775,41734.0,41732.0,0.06340918]
[1644085425938,0.36778975,41733.0,41732.0,0.05570918]
[1644085426537,0.35377075,41733.0,41723.0,0.01929945]
[1644085426740,0.014019,41732.0,41730.0,0.0007192]
[1644085427400,0.014019,41732.0,41730.0,9.2e-06]
[1644085427604,0.41304374,41735.0,41730.0,9.2e-06]
[1644085427605,0.11286607,41731.0,41730.0,9.2e-06]
[1644085427802,0.11286607,41731.0,41719.0,0.01980365]
[1644085427803,0.46830615,41731.0,41719.0,0.01980365]
[1644085428006,0.15,41729.0,41719.0,0.01980365]
[1644085428202,0.40354008,41728.0,41719.0,0.01980365]
[1644085428404,0.29988296,41727.0,41719.0,0.01980365]
[1644085428602,0.32272313,41715.0,41711.0,0.01]
[1644085428802,0.014019,41714.0,41711.0,0.01]
[1644085429004,0.014019,41719.0,41713.0,0.05]
[1644085430004,0.0198,41720.0,41718.0,0.05]
[1644085430205,0.0198,41720.0,41719.0,0.435127]
[1644085430404,0.0198,41720.0,41719.0,0.535127]
[1644085431242,0.0198,41720.0,41719.0,0.85942403]
[1644085431640,0.0198,41720.0,41719.0,0.90352403]
[1644085432440,0.13391284,41733.0,41720.0,0.75]
[1644085432641,0.13391284,41733.0,41728.0,0.05]
[1644085432642,0.2159024,41733.0,41728.0,0.05]
[1644085432841,0.10242148,41733.0,41728.0,0.05]
[1644085433042,0.08270864,41733.0,41728.0,0.05]
[1644085433643,0.08198956,41733.0,41728.0,0.05]
[1644085433842,0.08198956,41733.0,41728.0,0.05071923]
[1644085434044,0.0827087,41733.0,41728.0,0.33542819]
[1644085434242,0.0827087,41733.0,41728.0,0.38542819]
[1644085434443,0.0827087,41733.0,41728.0,0.05071923]
[1644085434685,0.0827087,41733.0,41728.0,0.15071923]
[1644085434886,0.08198956,41733.0,41728.0,0.15]
[1644085435186,0.0827087,41733.0,41728.0,0.15071923]
[1644085435387,0.0827087,41733.0,41719.0,0.0198]
[1644085435388,0.05,41729.0,41719.0,0.0198]
[1644085435590,0.75,41732.0,41719.0,0.0198]
[1644085435591,0.05,41720.0,41719.0,0.0198]
[1644085435793,0.08131955,41722.0,41719.0,0.0198]
[1644085436187,0.014019,41720.0,41719.0,0.0198]
[1644085436487,0.05,41720.0,41719.0,0.0198]
[1644085436686,0.08131955,41722.0,41719.0,0.0198]
[1644085437588,0.08131955,41722.0,41709.0,0.33841792]
[1644085438448,0.08131955,41722.0,41709.0,0.1]
[1644085438638,0.08131955,41722.0,41714.0,0.00071882]
[1644085439843,0.08131955,41722.0,41716.0,0.00071881]
[1644085440844,0.08131955,41722.0,41704.0,0.44976851]
[1644085441049,0.07052382,41715.0,41704.0,0.44976851]
[1644085442391,0.07052382,41715.0,41711.0,0.01071886]
[1644085443397,0.06052382,41715.0,41711.0,0.01]
[1644085443601,0.06052382,41715.0,41711.0,0.01071886]
[1644085444597,0.06052382,41715.0,41711.0,0.01]
[1644085444798,0.05,41713.0,41711.0,0.01071886]
[1644085445396,0.34532188,41712.0,41711.0,0.01071886]
[1644085445796,0.34532188,41712.0,41711.0,0.01]
[1644085446241,0.34532188,41712.0,41709.0,0.00071888]
[1644085446242,0.75,41711.0,41709.0,0.00071888]
[1644085446445,0.05,41710.0,41709.0,0.00071888]
[1644085446638,0.23031634,41708.0,41703.0,0.03668339]
[1644085448239,0.08077368,41705.0,41703.0,0.03668339]
[1644085448843,0.07577368,41705.0,41703.0,0.03668339]
[1644085451697,0.07577368,41705.0,41691.0,0.03095996]
[1644085451698,0.75,41703.0,41691.0,0.03095996]
[1644085451894,0.05,41699.0,41691.0,0.03095996]
[1644085452093,0.05,41699.0,41695.0,0.00287632]
[1644085452692,0.05,41699.0,41681.0,0.21288995]
[1644085452693,0.05,41696.0,41681.0,0.21288995]
[1644085452895,0.05,41683.0,41681.0,0.01]
[1644085453093,0.02095996,41692.0,41681.0,0.01]
[1644085453550,0.26041364,41685.0,41681.0,0.01]
[1644085453749,0.40867163,41683.0,41681.0,0.01]
[1644085453949,0.0441,41691.0,41681.0,0.01]
[1644085454151,0.05,41686.0,41681.0,0.01]
[1644085454347,0.05,41686.0,41683.0,0.05]
[1644085454950,0.05,41686.0,41681.0,0.01]
[1644085455349,0.08413324,41689.0,41681.0,0.01]
[1644085455551,0.52353362,41691.0,41683.0,0.05]
[1644085455552,0.22050658,41691.0,41683.0,0.05]
[1644085456348,0.22050658,41691.0,41681.0,0.01071826]
[1644085456548,0.06910024,41689.0,41681.0,0.01]
[1644085456756,0.22050658,41691.0,41681.0,0.01]
[1644085456757,0.06746225,41682.0,41681.0,0.01]
[1644085457589,0.31332132,41682.0,41681.0,0.005]
[1644085457790,0.64439696,41682.0,41681.0,0.005]
[1644085459190,0.98522857,41682.0,41681.0,0.005]
[1644085459395,0.64439696,41682.0,41681.0,0.005]
[1644085461854,0.39853789,41682.0,41681.0,0.005]
[1644085462854,0.24503514,41684.0,41681.0,0.005]
[1644085463053,0.42473488,41688.0,41681.0,0.005]
[1644085463254,0.0441,41690.0,41681.0,0.005]
[1644085463453,0.0441,41690.0,41682.0,0.05]
[1644085463656,0.123,41693.0,41682.0,0.05]
[1644085463855,0.49113849,41692.0,41682.0,0.05]
[1644085464053,0.22819766,41691.0,41684.0,0.00071823]
[1644085464253,0.22819766,41691.0,41684.0,0.05071823]
[1644085464453,0.49113849,41692.0,41684.0,0.05071823]
[1644085464454,0.08764802,41692.0,41684.0,0.05071823]
[1644085464697,0.123,41693.0,41684.0,0.05071823]
[1644085464890,0.02173348,41694.0,41684.0,0.05]
[1644085465090,0.41770348,41697.0,41686.0,0.00071821]
[1644085465292,0.0216215,41697.0,41686.0,0.00071821]
[1644085465493,0.33377641,41695.0,41686.0,0.00071821]
[1644085465692,0.26943759,41693.0,41686.0,0.00071821]
[1644085466191,0.26943759,41693.0,41684.0,0.05]
[1644085466392,0.26943759,41693.0,41687.0,0.00071819]
[1644085467200,0.26943759,41693.0,41687.0,0.05071819]
[1644085467395,0.02090348,41697.0,41687.0,0.05]
[1644085467597,0.02090348,41697.0,41693.0,0.05]
[1644085467598,0.02162151,41697.0,41693.0,0.05]
[1644085467994,0.02162151,41697.0,41688.0,0.51118313]
[1644085468194,0.02162151,41697.0,41696.0,0.05]
[1644085468448,0.59856839,41697.0,41693.0,0.05]
[1644085468642,0.08541106,41695.0,41693.0,0.00071814]
[1644085468845,0.40240645,41697.0,41694.0,0.05]
[1644085469241,0.02090348,41697.0,41694.0,0.05]
[1644085469641,0.00071804,41699.0,41694.0,0.05]
[1644085469848,0.28626611,41703.0,41694.0,0.05]
[1644085470042,0.00071805,41698.0,41695.0,0.28385378]
[1644085470644,0.00071805,41698.0,41694.0,0.05]
[1644085470842,0.67961939,41703.0,41694.0,0.05]
[1644085471048,0.698926,41703.0,41694.0,0.05]
[1644085471244,0.00071805,41698.0,41694.0,0.05]
[1644085472048,0.698926,41703.0,41694.0,0.05]
[1644085472495,0.00071805,41698.0,41695.0,0.30039512]
[1644085472690,0.00071805,41698.0,41697.0,0.05]
[1644085472891,0.00071805,41698.0,41697.0,0.67861103]
[1644085473389,0.02155413,41703.0,41698.0,0.335]
[1644085473590,0.02155413,41703.0,41702.0,0.05]
[1644085473790,0.02155413,41703.0,41702.0,0.68423435]
[1644085474191,0.02155413,41703.0,41702.0,0.78423435]
[1644085474391,0.02155413,41703.0,41702.0,0.485]
[1644085475293,0.05,41704.0,41702.0,0.15]
[1644085475693,0.05,41704.0,41703.0,0.05]
[1644085477552,0.05,41704.0,41699.0,0.42133379]
[1644085477747,0.05,41704.0,41703.0,0.05]
[1644085481499,0.00071796,41706.0,41703.0,0.05]
[1644085481698,0.60131044,41708.0,41703.0,0.05]
[1644085482100,0.00071795,41707.0,41705.0,0.05]
[1644085482499,0.00071795,41707.0,41705.0,0.04]
[1644085482902,0.61131044,41708.0,41702.0,0.47470554]
[1644085484043,0.61131044,41708.0,41707.0,0.04]
[1644085484245,0.69925289,41708.0,41707.0,0.04]
[1644085484945,0.60131044,41708.0,41707.0,0.04]
[1644085485144,0.02400628,41712.0,41707.0,0.04]
[1644085485346,0.02400628,41712.0,41708.0,0.04]
[1644085485947,0.003,41712.0,41708.0,0.04]
[1644085486147,0.35587644,41709.0,41708.0,0.04]
[1644085494247,0.60085397,41709.0,41708.0,0.04]
[1644085495600,0.60085397,41709.0,41708.0,0.035]
[1644085498102,0.35587644,41709.0,41708.0,0.035]
[1644085498545,0.35587644,41709.0,41705.0,0.16]
[1644085498751,0.015,41706.0,41700.0,0.5]
[1644085498945,0.75,41708.0,41700.0,0.5]
[1644085498946,0.015,41701.0,41700.0,0.5]